bitfinex/quotes_ETHUSD_20240928
["timestamp","ask_amount","ask_price","bid_price","bid_amount"]
[1727507702078,3.67547103,2684.6,2684.2,0.8253]
[1727507702276,1.16847967,2684.5,2684.2,4.55079]
[1727507702507,0.11652502,2684.4,2684.2,4.55079]
[1727507702713,0.11652502,2684.4,2684.3,3.72536]
[1727507703218,3.55843144,2684.6,2684.3,3.72536]
[1727507703406,0.11652502,2684.4,2684.3,3.72536]
[1727507704719,1.67347679,2684.4,2684.2,3.72543]
[1727507705310,0.833,2684.3,2684.0,3.0]
[1727507705621,0.11622073,2684.2,2684.1,6.7256]
[1727507705971,0.833,2684.3,2684.1,6.7256]
[1727507706305,0.11622073,2684.2,2684.1,3.7256]
[1727507706479,0.833,2684.3,2684.1,3.7256]
[1727507706681,0.11622073,2684.2,2684.1,3.7256]
[1727507706891,0.833,2684.3,2684.1,3.7256]
[1727507707092,0.11622073,2684.2,2684.1,3.7256]
[1727507707292,0.833,2684.3,2684.1,3.7256]
[1727507707491,0.11622073,2684.2,2684.1,3.7256]
[1727507707693,0.833,2684.3,2684.1,3.7256]
[1727507708030,0.11622073,2684.2,2684.1,3.7256]
[1727507708384,0.833,2684.3,2684.1,3.72557]
[1727507708588,0.11622073,2684.2,2684.1,3.72557]
[1727507708930,2.72543144,2684.4,2684.1,3.72557]
[1727507709115,2.72543144,2684.4,2684.2,3.72542]
[1727507710434,1.55695177,2684.4,2684.2,3.72542]
[1727507710731,0.11622415,2684.3,2684.2,3.72542]
[1727507715442,0.11622415,2684.3,2684.2,5.249819]
[1727507715590,0.11622415,2684.3,2684.2,5.32432102]
[1727507715792,1.16847967,2684.7,2684.6,3.72494]
[1727507716091,1.16847967,2684.8,2684.7,3.72481]
[1727507717422,1.16847967,2685.0,2684.8,4.50397]
[1727507717724,1.16847967,2685.1,2685.0,3.72439]
[1727507717927,2.72543144,2685.2,2685.1,3.72425]
[1727507718154,2.72319468,2685.2,2685.1,3.72425]
[1727507718359,2.72319819,2685.2,2685.1,3.72425]
[1727507718656,1.55695177,2685.2,2685.1,3.72425]
[1727507718839,2.72322825,2685.2,2685.1,3.72425]
[1727507719047,2.72322083,2685.2,2685.1,3.72425]
[1727507719216,2.72322093,2685.2,2685.1,3.72425]
[1727507719416,3.22708547,2685.2,2685.0,3.72438]
[1727507719645,2.83424181,2685.2,2685.0,3.72438]
[1727507720011,1.16620571,2685.1,2685.0,3.72438]
[1727507720562,1.27738273,2685.1,2685.0,3.72438]
[1727507720771,0.11117702,2685.1,2685.0,3.72438]
[1727507721668,2.77315754,2685.3,2685.1,3.72425]
[1727507721822,1.16620571,2685.2,2685.1,3.72425]
[1727507722957,1.27767419,2685.2,2685.1,3.72425]
[1727507723557,1.27767419,2685.2,2684.8,4.50388]
[1727507723726,1.16614019,2685.1,2684.9,3.72451]
[1727507723922,0.11133356,2685.0,2684.9,3.72451]
[1727507727300,1.96984019,2685.2,2684.9,3.72451]
[1727507727468,1.27754121,2685.1,2684.9,3.72451]
[1727507728380,0.11140102,2685.1,2684.9,3.72451]
[1727507731810,0.11140102,2685.1,2685.0,3.72439]
[1727507737719,1.16614019,2685.2,2685.0,3.72439]
[1727507738023,0.10988089,2685.1,2684.8,4.50384]
[1727507738517,0.10988089,2685.1,2685.0,3.72439]
[1727507738726,2.72309196,2685.3,2685.0,3.72439]
[1727507738913,0.10994834,2685.2,2685.0,3.72439]
[1727507739110,2.72309196,2685.3,2685.0,3.72439]
[1727507739608,0.10994834,2685.2,2685.0,3.72439]
[1727507740025,2.72309196,2685.3,2685.0,3.72439]
[1727507740195,0.10968422,2685.1,2685.0,3.72439]
[1727507740409,2.72309196,2685.3,2685.0,3.72439]
[1727507740927,0.10975168,2685.2,2685.0,3.72439]
[1727507741086,2.72309196,2685.3,2685.0,3.72439]
[1727507741287,0.10975168,2685.2,2685.0,3.72439]
[1727507741490,2.72309196,2685.3,2685.0,3.72439]
[1727507741721,0.10975168,2685.2,2685.0,3.72439]
[1727507741924,2.72309196,2685.3,2685.0,3.72439]
[1727507742229,0.10975168,2685.2,2685.0,3.72439]
[1727507742582,2.72309196,2685.3,2685.0,3.72439]
[1727507742796,0.10968422,2685.1,2685.0,3.72439]
[1727507743024,2.72309196,2685.3,2685.0,3.72439]
[1727507743208,1.16614019,2685.6,2685.4,3.72384]
[1727507743418,1.96284019,2685.7,2685.4,3.72384]
[1727507743714,1.96284019,2685.7,2685.4,3.72375]
[1727507745019,0.11015409,2685.6,2685.4,3.72375]
[1727507746444,0.11015409,2685.6,2685.5,3.7237]
[1727507746850,0.11015409,2685.6,2685.4,3.72375]
[1727507748626,0.11015409,2685.6,2685.4,7.4475]
[1727507748936,0.11015409,2685.6,2685.4,3.72375]
[1727507749920,0.11015409,2685.6,2685.5,3.7237]
[1727507750743,0.11015409,2685.6,2685.4,4.52725]
[1727507755550,0.11015409,2685.6,2685.4,0.8035]
[1727507756419,1.27629428,2685.6,2685.2,4.55441]
[1727507756619,1.27629428,2685.6,2685.3,3.72397]
[1727507758053,1.60695183,2685.5,2685.0,7.4486]
[1727507758260,1.60695183,2685.5,2685.1,3.72425]
[1727507758261,2.77309202,2685.5,2685.1,3.72425]
[1727507758462,0.10630786,2685.4,2685.1,3.72425]
[1727507760068,1.27244805,2685.4,2685.1,3.72425]
[1727507762672,1.16614019,2685.3,2685.1,3.72425]
[1727507763048,0.10477963,2685.2,2685.1,3.72425]
[1727507763371,1.16614019,2685.4,2685.1,3.72425]
[1727507763576,0.10477963,2685.2,2685.1,3.72425]
[1727507763783,1.16614019,2685.4,2685.0,3.72429]
[1727507763942,1.16614019,2685.4,2685.2,3.7241]
[1727507764133,1.16614019,2685.3,2685.2,3.7241]
[1727507764473,1.16614019,2685.3,2685.2,3.72411]
[1727507764648,1.16614019,2685.4,2685.2,3.72411]
[1727507765237,0.10484709,2685.3,2685.2,3.72411]
[1727507765532,1.27098728,2685.3,2685.2,3.72411]
[1727507766965,0.10484709,2685.3,2685.2,4.55451]
[1727507769771,0.10484709,2685.3,2685.2,5.382385]
[1727507770100,1.55904937,2685.6,2685.4,3.72384]
[1727507771186,1.55904937,2685.6,2685.5,3.7237]
[1727507773083,1.55904937,2685.6,2685.3,3.72397]
[1727507773389,1.16676161,2685.5,2685.4,3.72383]
[1727507773548,0.10505078,2685.5,2685.4,3.72383]
[1727507774180,1.27192209,2685.5,2685.4,3.72383]
[1727507775881,0.10505078,2685.5,2685.4,3.72383]
[1727507776754,1.27215704,2685.5,2685.4,3.72383]
[1727507777651,0.10505078,2685.5,2685.4,3.72383]
[1727507778064,1.27217005,2685.5,2685.4,3.72383]
[1727507778466,1.66410015,2685.5,2685.4,3.72383]
[1727507778659,0.10505078,2685.5,2685.4,3.72383]
[1727507780568,1.66410015,2685.5,2685.4,3.72383]
[1727507786900,0.10505078,2685.5,2685.4,3.72383]
[1727507788504,2.05241761,2685.5,2685.4,3.72383]
[1727507789688,1.66337108,2685.5,2685.4,3.72383]
[1727507792118,0.10505078,2685.5,2685.4,3.72383]
[1727507792432,0.10505078,2685.5,2685.4,4.55165]
[1727507792433,1.27373012,2685.5,2685.4,4.55165]
[1727507792730,1.27373012,2685.5,2685.4,8.31295]
[1727507792731,0.10505078,2685.5,2685.4,8.31295]
[1727507793220,1.16867934,2685.7,2685.6,3.72356]
[1727507793442,1.16867934,2685.7,2685.6,7.927211]
[1727507793648,1.16867934,2685.8,2685.7,3.72342]
[1727507794143,1.16867934,2685.8,2685.7,4.48472]
[1727507796433,1.27433052,2685.8,2685.7,4.48472]
[1727507796857,0.10565118,2685.8,2685.7,8.7259131]
[1727507797335,1.16867934,2686.1,2686.0,3.723]
[1727507797510,1.16867934,2686.2,2686.1,3.72286]
[1727507798613,1.16867934,2686.3,2686.1,3.72286]
[1727507798945,1.16867934,2686.3,2686.2,3.72273]
[1727507800152,1.27424248,2686.3,2686.2,3.72273]
[1727507800452,0.10556314,2686.3,2686.2,3.72273]
[1727507804252,0.10554479,2686.3,2686.2,3.72273]
[1727507804426,1.16867934,2686.5,2686.2,3.72273]
[1727507804611,0.10554479,2686.3,2686.2,3.72273]
[1727507804825,1.16867934,2686.5,2686.2,3.72273]
[1727507805138,0.10564079,2686.3,2686.2,3.72273]
[1727507805352,1.16867934,2686.4,2686.2,3.72273]
[1727507805549,0.10564079,2686.3,2686.2,3.72273]
[1727507806723,1.16867934,2686.5,2686.2,3.72273]
[1727507806922,0.10564079,2686.3,2686.2,3.72273]
[1727507807361,0.10553082,2686.3,2686.2,3.72273]
[1727507807726,1.16867934,2686.5,2686.2,3.72273]
[1727507808065,0.10564079,2686.3,2686.2,3.72273]
[1727507808232,1.16867934,2686.5,2686.2,3.72273]
[1727507808440,0.10564079,2686.3,2686.2,3.72273]
[1727507808636,1.16867934,2686.5,2686.2,3.72273]
[1727507808866,0.10564079,2686.3,2686.2,3.72273]
[1727507809027,1.16867934,2686.5,2686.2,3.72273]
[1727507809225,0.10547599,2686.3,2686.2,3.72273]
[1727507809453,1.16867934,2686.5,2686.2,3.72273]
[1727507809721,0.10564079,2686.3,2686.2,3.72273]
[1727507810229,1.16867934,2686.5,2686.2,3.72273]
[1727507810545,0.10564079,2686.3,2686.2,3.72273]
[1727507810754,1.16867934,2686.5,2686.4,3.72245]
[1727507810942,1.95057934,2686.7,2686.5,3.72231]
[1727507811332,0.10598053,2686.6,2686.5,3.72231]
[1727507819776,0.10598053,2686.6,2686.4,3.72245]
[1727507819991,0.10598053,2686.6,2686.4,3.72238]
[1727507820163,0.10598053,2686.6,2686.4,3.72235]
[1727507820680,0.10598053,2686.6,2686.4,7.44472]
[1727507820882,0.10598053,2686.6,2686.5,3.72231]
[1727507822896,3.55703117,2686.9,2686.5,3.72231]
[1727507823204,0.10517063,2686.6,2686.5,3.72231]
[1727507823682,3.55703117,2686.9,2686.5,3.72231]
[1727507823995,0.10517063,2686.6,2686.5,3.72231]
[1727507824499,3.55703117,2686.9,2686.5,3.72231]
[1727507824697,0.10517063,2686.6,2686.5,3.72231]
[1727507824989,3.55703117,2686.9,2686.5,3.72231]
[1727507825699,0.10530539,2686.8,2686.5,3.72231]
[1727507825898,0.10530539,2686.8,2686.4,3.72235]
[1727507826059,0.10530539,2686.8,2686.6,3.72215]
[1727507828374,0.10530539,2686.8,2686.7,3.72203]
[1727507833286,0.10530539,2686.8,2686.6,3.72216]
[1727507833481,0.10530539,2686.8,2686.6,7.44432]
[1727507833913,0.10530539,2686.8,2686.6,3.72216]
[1727507834323,0.10530539,2686.8,2686.6,7.44425]
[1727507835004,0.10530539,2686.8,2686.7,3.72203]
[1727507835601,1.27398473,2686.8,2686.7,3.72203]
[1727507835830,1.27398473,2686.8,2686.7,4.542082]
[1727507836602,1.27398473,2686.8,2686.7,0.820052]
[1727507836831,1.27398473,2686.8,2686.6,3.72209]
[1727507837512,1.16867934,2686.7,2686.6,7.44419]
[1727507837691,1.27400413,2686.7,2686.6,3.72209]
[1727507838089,0.10532479,2686.7,2686.6,3.72209]
[1727507838292,1.16867934,2686.8,2686.6,3.72209]
[1727507838491,1.16867934,2686.8,2686.6,7.44419]
[1727507838492,1.16867934,2686.7,2686.6,7.44419]
[1727507838735,1.27400413,2686.7,2686.6,3.72209]
[1727507841739,3.22093196,2686.7,2686.4,3.72235]
[1727507842071,1.16898945,2686.5,2686.4,3.72235]
[1727507842448,1.27412453,2686.5,2686.4,3.72235]
[1727507849603,1.23803413,2686.5,2686.4,3.72235]
[1727507851594,0.10513508,2686.5,2686.4,3.72235]
[1727507853738,1.66379048,2686.5,2686.4,3.72235]
[1727507853901,0.10513508,2686.5,2686.4,3.72235]
[1727507854247,0.10513508,2686.5,2686.4,4.547842]
[1727507855122,0.10513508,2686.5,2686.4,5.359442]
[1727507855309,1.5586554,2686.6,2686.5,3.72231]
[1727507857443,1.95121631,2686.7,2686.5,3.72231]
[1727507858034,1.5615713,2686.6,2686.5,3.72231]
[1727507858238,1.66685635,2686.6,2686.5,3.72231]
[1727507858943,0.10528505,2686.6,2686.5,3.72231]
[1727507859148,1.66685876,2686.6,2686.5,3.72231]
[1727507859351,0.10528505,2686.6,2686.5,3.72231]
[1727507859511,2.0572464,2686.6,2686.5,3.72231]
[1727507859711,2.0572464,2686.6,2686.4,3.72235]
[1727507860022,1.56156047,2686.5,2686.4,7.44472]
[1727507860236,1.66677814,2686.5,2686.4,7.44472]
[1727507861249,1.66677814,2686.5,2686.4,3.72235]
[1727507861450,2.42437814,2686.5,2686.2,3.72269]
[1727507861649,2.42437814,2686.5,2686.3,3.72258]
[1727507861825,1.56156047,2686.4,2686.3,3.72258]
[1727507862021,1.66670618,2686.4,2686.3,3.72258]
[1727507862237,0.10514571,2686.4,2686.3,3.72258]
[1727507862752,1.66670618,2686.4,2686.3,3.72258]
[1727507867218,1.66651028,2686.4,2686.3,3.72258]
[1727507874822,1.66651028,2686.4,2686.1,3.72279]
[1727507874823,0.87434571,2686.4,2686.1,3.72279]
[1727507875157,0.87434571,2686.4,2685.8,3.7929]
[1727507875158,1.56062928,2686.2,2686.0,3.72291]
[1727507875356,1.56020147,2686.1,2686.0,3.72291]
[1727507875562,1.66537398,2686.1,2686.0,3.72291]
[1727507876224,0.87437251,2686.1,2685.8,6.72319]
[1727507876421,1.16989842,2686.0,2685.8,6.72319]
[1727507876672,1.27494403,2685.9,2685.8,6.72319]
[1727507876971,3.22186194,2685.9,2685.6,3.72347]
[1727507877120,1.1699101,2685.8,2685.6,3.72347]
[1727507877325,1.1699101,2685.7,2685.6,3.72347]
[1727507877545,0.10493069,2685.7,2685.6,3.72347]
[1727507877858,0.10493069,2685.7,2685.5,3.72368]
[1727507877859,1.55986456,2685.7,2685.5,3.72368]
[1727507878161,0.10467591,2685.6,2685.5,3.72368]
[1727507882650,1.93851458,2685.8,2685.5,3.72368]
[1727507882967,0.10463335,2685.7,2685.6,3.72353]
[1727507883149,0.7692,2685.8,2685.6,3.72353]
[1727507883352,0.10463335,2685.7,2685.6,3.72353]
[1727507884163,0.7692,2685.8,2685.6,3.72353]
[1727507884328,0.10463335,2685.7,2685.6,3.72353]
[1727507884530,0.7692,2685.8,2685.6,3.72353]
[1727507884731,0.10463335,2685.7,2685.6,3.72353]
[1727507884931,0.7692,2685.8,2685.6,3.72353]
[1727507885132,0.10463335,2685.7,2685.6,3.72353]
[1727507885334,0.7692,2685.8,2685.6,3.72353]
[1727507885557,0.10463335,2685.7,2685.6,3.72353]
[1727507886184,0.7692,2685.8,2685.6,3.72353]
[1727507886371,0.10463335,2685.7,2685.6,3.72353]
[1727507886852,0.7692,2685.8,2685.6,3.72353]
[1727507887053,0.10463335,2685.7,2685.6,3.72353]
[1727507887258,0.7692,2685.8,2685.6,3.72353]
[1727507887474,0.10463335,2685.7,2685.6,3.72353]
[1727507887678,0.7692,2685.8,2685.6,3.72353]
[1727507887984,0.10463335,2685.7,2685.6,3.72353]
[1727507888150,0.7692,2685.8,2685.6,3.72353]
[1727507888351,0.10463335,2685.7,2685.6,3.72353]
[1727507888668,0.10440481,2685.7,2685.6,3.72353]
[1727507888871,0.7692,2685.8,2685.6,3.72353]
[1727507889075,0.10440481,2685.7,2685.6,3.72353]
[1727507889387,0.7692,2685.8,2685.6,3.72353]
[1727507889588,0.10440481,2685.7,2685.6,3.72353]
[1727507889963,0.7692,2685.8,2685.6,3.72353]
[1727507890149,0.10440481,2685.7,2685.6,3.72353]
[1727507890350,0.7692,2685.8,2685.6,3.72353]
[1727507890693,0.10440481,2685.7,2685.6,3.72353]
[1727507890875,0.7692,2685.8,2685.6,3.72353]
[1727507891053,0.49412343,2685.7,2685.6,3.72353]
[1727507895261,0.10440481,2685.7,2685.6,3.72353]
[1727507895769,0.7692,2685.8,2685.6,3.72353]
[1727507895966,0.10437732,2685.7,2685.6,3.72353]
[1727507896473,0.7692,2685.8,2685.6,3.72353]
[1727507896674,0.10437732,2685.7,2685.5,3.72365]
[1727507896872,0.7692,2685.8,2685.5,3.72365]
[1727507897072,0.10437732,2685.7,2685.5,3.72365]
[1727507897304,0.7692,2685.8,2685.5,3.72365]
[1727507897483,0.1043099,2685.6,2685.5,3.72365]
[1727507897677,0.7692,2685.8,2685.5,3.72365]
[1727507897976,0.10437732,2685.7,2685.5,3.72365]
[1727507898187,0.7692,2685.8,2685.5,3.72365]
[1727507898737,0.10437732,2685.7,2685.5,3.72365]
[1727507898874,0.7692,2685.8,2685.5,3.72365]
[1727507899073,0.10437732,2685.7,2685.5,3.72365]
[1727507899295,0.7692,2685.8,2685.5,3.72365]
[1727507899501,0.10437732,2685.7,2685.5,3.72365]
[1727507899703,0.7692,2685.8,2685.5,3.72365]
[1727507899899,0.1043099,2685.6,2685.5,3.72365]
[1727507900219,1.55695177,2685.7,2684.5,12.15]
[1727507900417,1.55695177,2685.7,2682.2,4.53041302]
[1727507900418,1.55695177,2685.2,2684.8,3.72459]
[1727507900707,0.10382663,2685.1,2684.8,3.72459]
[1727507901517,0.10382663,2685.1,2684.6,3.72485]
[1727507901724,0.10382663,2685.1,2684.8,3.72466]
[1727507901725,0.15382669,2685.1,2684.8,3.72466]
[1727507902075,0.15382669,2685.1,2684.6,7.44971]
[1727507902482,0.15382669,2685.1,2684.7,3.72476]
[1727507903419,0.15382669,2685.1,2684.8,3.72463]
[1727507906031,0.8214,2684.9,2684.5,0.759]
[1727507906439,0.10340937,2684.8,2684.5,0.759]
[1727507906899,0.10340937,2684.8,2684.7,3.72481]
[1727507911132,0.38977853,2685.0,2684.9,3.72453]
[1727507911745,0.38977853,2685.0,2684.7,7.44952]
[1727507911914,0.38977853,2685.0,2684.8,3.72459]
[1727507912112,0.38977853,2685.0,2684.7,3.72471]
[1727507912113,0.38977853,2685.0,2684.9,3.72453]
[1727507913944,1.55695177,2685.2,2684.9,3.72453]
[1727507914313,0.10312677,2685.1,2684.9,3.72453]
[1727507914813,0.15312683,2685.1,2684.7,3.72471]
[1727507915013,2.37265177,2685.0,2684.7,3.72471]
[1727507915209,0.05000006,2684.9,2684.5,3.72499]
[1727507915518,0.15301939,2684.9,2684.5,3.72499]
[1727507916320,0.15301939,2684.9,2684.6,3.72487]
[1727507916721,0.10301933,2684.9,2684.6,3.72487]
[1727507917061,0.10301933,2684.9,2684.5,3.72499]
[1727507917225,0.10301933,2684.9,2684.7,3.72478]
[1727507920813,0.15301939,2684.9,2684.7,3.72478]
[1727507921214,0.10301933,2684.9,2684.7,3.72478]
[1727507922544,0.10301933,2684.9,2684.8,3.72467]
[1727507922717,13.56391553,2685.5,2685.1,3.72421]
[1727507922718,1.16931458,2685.4,2685.1,3.72421]
[1727507922913,1.16931458,2685.4,2685.1,4.469077]
[1727507923213,9.72556456,2685.5,2685.1,3.72421]
[1727507923214,9.33501458,2685.5,2685.1,3.72421]
[1727507923440,0.10312886,2685.3,2685.1,3.72421]
[1727507923828,9.33501458,2685.5,2685.1,3.72421]
[1727507924050,0.10306142,2685.2,2685.1,3.72421]
[1727507924249,9.33501458,2685.5,2685.1,3.72421]
[1727507924760,0.1031963,2685.4,2685.1,3.72421]
[1727507925252,1.27251088,2685.4,2685.1,3.72421]
[1727507925747,0.1031963,2685.4,2685.1,3.72421]
[1727507925912,1.27251088,2685.4,2685.1,3.72421]
[1727507926114,0.1031963,2685.4,2685.1,3.72421]
[1727507926314,1.27251088,2685.4,2685.0,0.8163]
[1727507928253,1.27251088,2685.4,2685.0,5.367184]
[1727507929446,0.3897675,2685.3,2685.0,5.367184]
[1727507929961,0.10306142,2685.2,2685.0,5.367184]
[1727507930257,0.3897675,2685.3,2685.0,0.8163]
[1727507930258,1.55908208,2685.3,2685.0,0.8163]
[1727507930415,0.10299397,2685.1,2684.8,4.54095]
[1727507930628,5.33306214,2685.3,2684.8,4.54095]
[1727507930956,5.33306214,2685.3,2684.8,8.26552]
[1727507931125,0.10309344,2685.2,2684.8,8.26552]
[1727507931328,1.60908214,2685.3,2684.9,3.72452]
[1727507931564,0.10302599,2685.1,2684.9,3.72452]
[1727507931763,1.55908208,2685.3,2684.9,3.72452]
[1727507932064,0.10294939,2685.0,2684.9,3.72452]
[1727507932225,1.55908208,2685.3,2684.9,3.72452]
[1727507932436,0.10294024,2685.0,2684.9,3.72452]
[1727507932654,1.55908208,2685.3,2684.9,4.67468678]
[1727507932861,0.10294024,2685.0,2684.9,3.72452]
[1727507933039,1.55908208,2685.3,2684.9,3.72452]
[1727507933245,0.10294024,2685.0,2684.9,3.72452]
[1727507933443,1.55908208,2685.3,2684.9,4.5883068]
[1727507933674,0.10294024,2685.0,2684.9,3.72452]
[1727507934137,1.55908208,2685.3,2684.9,3.72452]
[1727507934443,0.10294024,2685.0,2684.9,3.72452]
[1727507934644,1.16931458,2685.2,2684.9,3.72452]
[1727507934842,0.10294024,2685.0,2684.9,3.72452]
[1727507935068,1.16931458,2685.2,2684.9,4.5883068]
[1727507935268,0.10294024,2685.0,2684.9,4.5883068]
[1727507935472,1.16931458,2685.2,2684.9,4.5883068]
[1727507935678,0.10294024,2685.0,2684.9,4.5883068]
[1727507935889,1.16931458,2685.2,2684.9,4.5883068]
[1727507936040,0.10294024,2685.0,2684.9,4.5883068]
[1727507936240,1.16931458,2685.2,2684.9,4.5883068]
[1727507936552,1.16931458,2685.2,2684.9,0.8637868]
[1727507936873,0.1030077,2685.1,2685.0,3.72439]
[1727507937172,0.1030077,2685.1,2685.0,4.63729468]
[1727507937578,1.55908208,2685.3,2685.0,4.63729468]
[1727507937878,0.10302599,2685.1,2685.0,4.63729468]
[1727507938052,1.55908208,2685.3,2685.0,4.63729468]
[1727507938253,0.10297099,2685.1,2685.0,3.72439]
[1727507938479,1.16931458,2685.2,2685.0,3.72439]
[1727507938676,0.10297099,2685.1,2685.0,3.72439]
[1727507938893,0.10297099,2685.1,2685.0,4.550916]
[1727507941382,0.10297099,2685.1,2685.0,0.826526]
[1727507942352,1.27228557,2685.1,2684.8,8.26546]
[1727507942765,1.27228557,2685.1,2684.8,4.54087]
[1727507942974,1.27228557,2685.1,2684.9,3.72452]
[1727507943747,1.16931458,2685.0,2684.9,3.72452]
[1727507944082,0.10285768,2685.0,2684.9,3.72452]
[1727507944380,1.27217226,2685.0,2684.9,3.72452]
[1727507944755,1.66195055,2685.0,2684.9,3.72452]
[1727507944966,1.66195055,2685.0,2684.9,4.60019248]
[1727507945486,0.49263597,2685.0,2684.9,4.60019248]
[1727507945653,1.66257431,2685.0,2684.9,4.60019248]
[1727507946379,0.49263597,2685.0,2684.9,4.60019248]
[1727507946769,2.05250053,2685.0,2684.9,4.60019248]
[1727507947549,0.49263597,2685.0,2684.9,4.60019248]
[1727507947744,1.66263367,2685.0,2684.9,4.60019248]
[1727507947949,0.49263597,2685.0,2684.9,4.60019248]
[1727507948151,1.66264875,2685.0,2684.9,4.60019248]
[1727507948483,0.49263597,2685.0,2684.9,4.60019248]
[1727507949193,1.66263963,2685.0,2684.9,4.60019248]
[1727507949394,1.66266619,2685.0,2684.9,5.39039248]
[1727507949681,0.49263597,2685.0,2684.9,5.39039248]
[1727507950068,1.66261089,2685.0,2684.9,5.39039248]
[1727507950478,0.49263597,2685.0,2684.9,5.39039248]
[1727507950854,1.6626185,2685.0,2684.9,5.39039248]
[1727507951054,1.66260743,2685.0,2684.9,5.39039248]
[1727507951653,0.49263597,2685.0,2684.9,5.39039248]
[1727507951962,1.66260121,2685.0,2684.9,5.39039248]
[1727507952357,0.49263597,2685.0,2684.9,5.39039248]
[1727507952971,1.66263066,2685.0,2684.9,5.39039248]
[1727507953289,2.05250053,2685.0,2684.9,5.39039248]
[1727507954193,0.49263597,2685.0,2684.9,5.39039248]
[1727507954366,0.49263597,2685.0,2684.9,1.66587248]
[1727507954575,2.05250053,2685.0,2684.8,3.72457]
[1727507954769,1.16999538,2684.9,2684.8,3.72457]
[1727507955097,1.27282676,2684.9,2684.8,3.72457]
[1727507955297,0.10283138,2684.9,2684.8,3.72457]
[1727507955459,1.27286843,2684.9,2684.8,3.72457]
[1727507955884,0.10283138,2684.9,2684.6,3.72492]
[1727507956060,1.17010518,2684.8,2684.7,0.8162]
[1727507956261,1.17010518,2684.8,2684.7,4.54101]
[1727507956485,1.27286909,2684.8,2684.7,4.54101]
[1727507973878,1.27286909,2684.8,2684.7,3.72481]
[1727507974215,1.66262847,2684.8,2684.7,3.72481]
[1727507976347,0.10276391,2684.8,2684.7,4.549903]
[1727507980300,1.27392184,2684.8,2684.7,4.549903]
[1727507981935,1.27392184,2684.8,2684.7,4.62439321]
[1727507982142,0.10276391,2684.8,2684.7,5.351103]
[1727507982636,0.10276391,2684.8,2684.7,8.42558873]
[1727507982939,1.17115793,2685.2,2685.1,3.72425]
[1727507983099,1.17115793,2685.3,2685.2,3.72411]
[1727507986104,1.27441439,2685.3,2685.2,3.72411]
[1727507987101,0.10325646,2685.3,2685.2,3.72411]
[1727507987438,0.8046,2685.6,2685.4,3.72375]
[1727507987637,2.75559781,2685.6,2685.4,3.72375]
[1727507987840,1.66424111,2685.5,2685.4,3.72375]
[1727507990641,1.27326138,2685.5,2685.4,3.72375]
[1727508000013,0.10341886,2685.5,2685.4,3.72375]
[1727508000843,1.27326138,2685.5,2685.4,3.72375]
[1727508001739,1.27326138,2685.5,2685.3,7.44782]
[1727508001935,1.27326138,2685.5,2685.3,3.72386]
[1727508002355,1.27326138,2685.5,2685.3,7.44776]
[1727508003253,1.27326138,2685.5,2685.3,3.72386]
[1727508003458,1.27326138,2685.5,2685.4,3.72384]
[1727508014673,0.10341886,2685.5,2685.4,3.72384]
[1727508016787,1.66424111,2685.5,2685.4,3.72384]
[1727508016950,0.10341886,2685.5,2685.4,3.72384]
[1727508019666,1.66424111,2685.5,2685.4,3.72384]
[1727508022600,1.66424111,2685.5,2685.4,4.468621]
[1727508022817,0.10341886,2685.5,2685.4,5.265221]
[1727508023411,1.17066092,2685.7,2685.6,3.72356]
[1727508023598,1.95058435,2685.8,2685.6,3.72356]
[1727508024467,1.56082225,2685.7,2685.6,3.72356]
[1727508025714,1.6654686,2685.7,2685.6,3.72356]
[1727508028573,1.6654686,2685.7,2685.6,5.4190231]
[1727508031384,1.6654686,2685.7,2685.6,4.52016]
[1727508032078,1.70955676,2685.7,2685.6,4.52016]
[1727508037817,0.14873451,2685.7,2685.6,4.52016]
[1727508038186,1.95058435,2685.8,2685.7,3.72342]
[1727508039617,2.09625256,2685.8,2685.7,3.72342]
[1727508039794,0.53509303,2685.8,2685.7,3.72342]
[1727508039990,2.09621834,2685.8,2685.7,3.72342]
[1727508040520,1.70645624,2685.8,2685.7,3.72342]
[1727508053294,1.70645624,2685.8,2685.7,4.50452]
[1727508053491,1.31627197,2685.8,2685.7,5.249218]
[1727508053813,1.31627387,2685.8,2685.7,5.249218]
[1727508054022,0.14533093,2685.8,2685.7,5.249218]
[1727508054220,0.14533093,2685.8,2685.7,5.32367951]
[1727508054934,1.31627387,2685.8,2685.7,5.32367951]
[1727508055135,0.14533093,2685.8,2685.7,5.249218]
[1727508057420,1.17094294,2685.9,2685.8,3.72328]
[1727508058109,1.56112531,2686.1,2685.9,3.72314]
[1727508058619,1.56112531,2686.0,2685.9,3.72314]
[1727508058998,1.56112531,2686.1,2685.9,3.72314]
[1727508059322,1.56112531,2686.0,2685.9,3.72314]
[1727508060132,1.95140815,2686.2,2685.9,3.72314]
[1727508060133,1.56112531,2686.1,2685.9,3.72314]
[1727508060348,1.56112531,2686.1,2685.8,3.72328]
[1727508060349,2.33182531,2686.0,2685.8,3.72319]
[1727508060544,2.33226652,2686.0,2685.8,3.72319]
[1727508060851,2.33226652,2686.0,2685.7,3.72341]
[1727508061050,1.31691889,2685.9,2685.8,3.72328]
[1727508061216,1.31693039,2685.9,2685.8,3.72328]
[1727508061412,0.14571671,2685.9,2685.8,3.72328]
[1727508062123,1.31696729,2685.9,2685.8,3.72328]
[1727508062325,0.14571671,2685.9,2685.8,3.72328]
[1727508063208,1.70728323,2685.9,2685.8,3.72328]
[1727508067217,0.14571671,2685.9,2685.8,4.467949]
[1727508067545,1.70728323,2685.9,2685.8,4.467949]
[1727508068565,1.70728323,2685.9,2685.8,5.239749]
[1727508069059,0.14571671,2685.9,2685.8,5.239749]
[1727508069219,1.70728323,2685.9,2685.8,5.239749]
[1727508069757,0.14571671,2685.9,2685.8,5.239749]
[1727508070145,1.31841177,2685.9,2685.8,5.239749]
[1727508082134,1.31841177,2685.9,2685.8,4.467949]
[1727508082331,0.14571671,2685.9,2685.8,4.467949]
[1727508082536,1.31901071,2685.9,2685.8,4.467949]
[1727508084073,0.14571671,2685.9,2685.8,4.467949]
[1727508084243,1.31886758,2685.9,2685.8,4.467949]
[1727508084443,0.14571671,2685.9,2685.8,4.467949]
[1727508084680,1.318929,2685.9,2685.8,4.467949]
[1727508086516,0.14571671,2685.9,2685.8,4.467949]
[1727508086685,1.70728323,2685.9,2685.8,3.72328]